bitfinex-derivatives/quotes_SOLF0:USTF0_20250130
["timestamp","ask_amount","ask_price","bid_price","bid_amount"]
[1738205120037,4.2226,236.84,236.78,4.2234]
[1738205120238,0.03131603,236.83,236.78,4.25228099]
[1738205121239,0.03131603,236.83,236.66,11.55630843]
[1738205121240,11.58762446,236.83,236.66,11.55630843]
[1738205121439,11.55630843,236.8,236.63,11.55630843]
[1738205121640,11.55630843,236.77,236.63,11.55630843]
[1738205121838,4.2243,236.74,236.66,4.2256]
[1738205122443,0.0272259,236.72,236.68,0.03040166]
[1738205122844,0.0272259,236.72,236.7,4.2249]
[1738205126440,1.3632,236.79,236.69,11.55630843]
[1738205126740,1.4101,236.82,236.77,4.2236]
[1738205127242,1.4101,236.82,236.78,4.2235]
[1738205127544,1.4101,236.82,236.71,11.55630843]
[1738205127844,1.44200776,236.82,236.78,0.03011169]
[1738205128442,1.44200776,236.82,236.68,11.55630843]
[1738205128842,2.82030776,236.82,236.68,11.55630843]
[1738205129245,3.72756935,236.81,236.74,4.2242]
[1738205129545,3.72756935,236.81,236.75,0.03046453]
[1738205130047,0.02760567,236.8,236.75,0.03046453]
[1738205130744,0.02760567,236.8,236.78,4.2235]
[1738205131545,0.02760567,236.8,236.79,4.2233]
[1738205132848,0.02760567,236.8,236.75,0.03046453]
[1738205133648,4.25080567,236.8,236.75,4.25446453]
[1738205134146,0.02760567,236.8,236.76,4.2238]
[1738205134548,0.02760567,236.8,236.75,0.03046453]
[1738205134747,0.02760567,236.8,236.77,4.2236]
[1738205135049,0.02760567,236.8,236.75,0.03046453]
[1738205137249,4.25080567,236.8,236.75,4.25446453]
[1738205139047,0.02760567,236.8,236.75,0.03046453]
[1738205139750,4.2234,236.79,236.75,0.03046453]
[1738205139942,0.02760567,236.8,236.75,0.03046453]
[1738205140346,0.02760567,236.8,236.68,11.55630843]
[1738205140748,4.2239,236.76,236.68,11.55630843]
[1738205140944,11.55630843,236.79,236.64,11.55630843]
[1738205141648,0.02914019,236.74,236.69,0.02906964]
[1738205142049,0.02914019,236.74,236.69,4.25416964]
[1738205142645,0.02914019,236.74,236.72,4.2245]
[1738205142846,0.02914019,236.74,236.69,0.02906964]
[1738205143651,0.02914019,236.74,236.7,4.2248]
[1738205143856,0.02914019,236.74,236.69,0.02906964]
[1738205144855,0.02914019,236.74,236.71,4.2246]
[1738205145353,0.02914019,236.74,236.69,0.02906964]
[1738205146148,0.02914019,236.74,236.71,4.2247]
[1738205147555,0.02914019,236.74,236.69,0.02906964]
[1738205147556,0.02914019,236.74,236.7,4.2248]
[1738205147756,0.02914019,236.74,236.69,0.02906964]
[1738205148158,0.02914019,236.74,236.71,4.2247]
[1738205149658,0.02914019,236.74,236.72,4.2245]
[1738205151963,0.02914019,236.74,236.69,0.02906964]
[1738205152161,0.02914019,236.74,236.73,15.78070843]
[1738205160165,1.3421,236.86,236.73,11.55630843]
[1738205160369,1.3939,236.91,236.79,11.55630843]
[1738205160568,3.72858204,236.85,236.79,11.55630843]
[1738205160770,3.72858204,236.85,236.84,4.2224]
[1738205161473,0.03161731,236.87,236.86,4.2221]
[1738205161769,23.33464413,236.93,236.82,11.55630843]
[1738205161973,0.03015179,236.89,236.84,0.02850719]
[1738205162275,0.03015179,236.89,236.88,4.2217]
[1738205162478,0.03015179,236.89,236.84,0.02850719]
[1738205162678,0.03015179,236.89,236.87,4.2218]
[1738205162878,3.73178827,236.88,236.84,0.02850719]
[1738205163478,3.73178827,236.87,236.84,0.02850719]
[1738205164177,0.03015179,236.89,236.79,9.66070648]
[1738205164871,3.7340342,236.88,236.79,9.66070648]
[1738205165074,3.7340342,236.88,236.86,11.55630843]
[1738205165280,3.7340342,236.88,236.87,4.2219]
[1738205165668,2.8246,236.97,236.86,11.55630843]
[1738205165873,7.27816103,237.01,236.92,11.55630843]
[1738205166268,5.83366103,237.01,236.92,11.55630843]
[1738205166577,5.83366103,237.01,236.99,4.2197]
[1738205166871,0.02754562,237.02,236.99,4.2197]
[1738205167178,0.02754562,237.02,236.98,0.02727821]
[1738205168376,0.02754562,237.02,237.0,4.2194]
[1738205172281,0.02754562,237.02,236.98,4.24707821]
[1738205172581,0.02754562,237.02,236.98,0.02727821]
[1738205174371,4.24684562,237.02,236.98,0.02727821]
[1738205174675,2.84004562,237.02,236.98,0.02727821]
[1738205176681,2.84004562,237.02,236.98,4.24717821]
[1738205176976,2.84004562,237.02,236.98,0.02727821]
[1738205177677,11.55630843,237.01,236.86,11.55630843]
[1738205177878,4.22,236.98,236.86,11.55630843]
[1738205178278,11.55630843,236.98,236.9,4.2213]
[1738205178777,0.02811995,236.96,236.92,0.0324315]
[1738205178978,4.2205,236.95,236.92,0.0324315]
[1738205179175,0.02811995,236.96,236.92,0.0324315]
[1738205179379,0.02811995,236.96,236.83,11.55630843]
[1738205179576,0.02811995,236.96,236.71,2.304]
[1738205179879,11.55630843,236.95,236.8,11.55630843]
[1738205180182,4.2221,236.86,236.74,11.55630843]
[1738205180583,0.03075431,236.82,236.74,11.55630843]
[1738205180779,0.03075431,236.82,236.71,12.94210843]
[1738205180980,0.03075431,236.82,236.71,11.55630843]
[1738205181882,0.03075431,236.82,236.75,4.2239]
[1738205182281,0.03075431,236.82,236.71,11.55630843]
[1738205182481,0.03075431,236.82,236.72,4.2244]
[1738205182785,0.02674194,236.79,236.68,11.55630843]
[1738205183881,11.58305037,236.79,236.65,12.94210843]
[1738205184085,11.58305037,236.79,236.65,11.55630843]
[1738205184287,11.58305037,236.79,236.72,4.2245]
[1738205184586,0.02674194,236.79,236.72,4.2245]
[1738205184786,1.48524194,236.79,236.72,4.2245]
[1738205185181,1.48524194,236.79,236.65,11.55630843]
[1738205185382,1.48524194,236.79,236.73,4.2243]
[1738205185780,1.48524194,236.79,236.77,4.2236]
[1738205185985,1.4585,236.79,236.77,4.2236]
[1738205186186,0.03244944,236.8,236.71,11.55630843]
[1738205187190,0.03244944,236.8,236.73,4.2243]
[1738205187488,0.03244944,236.8,236.71,11.55630843]
[1738205188289,0.03244944,236.8,236.68,11.55630843]
[1738205188488,11.55630843,236.82,236.68,11.55630843]
[1738205188796,0.02664274,236.76,236.68,11.55630843]
[1738205188995,0.02664274,236.76,236.74,4.2242]
[1738205191089,0.02664274,236.76,236.75,4.224]
[1738205192499,0.02664274,236.76,236.74,4.2242]
[1738205193094,0.02664274,236.76,236.68,11.55630843]
[1738205193295,0.02664274,236.76,236.75,4.224]
[1738205193599,0.02664274,236.76,236.68,11.55630843]
[1738205194003,0.02664274,236.76,236.65,11.55630843]
[1738205194300,11.55630843,236.79,236.65,11.55630843]
[1738205194502,0.0324016,236.73,236.7,4.2249]
[1738205194892,0.0324016,236.73,236.72,4.2246]
[1738205198000,1.419,236.83,236.81,4.2229]
[1738205198500,1.419,236.83,236.71,11.55630843]
[1738205198802,1.419,236.83,236.75,4.224]
[1738205199206,0.027249,236.81,236.77,0.03136112]
[1738205199395,4.2233,236.79,236.77,0.03136112]
[1738205200398,4.2232,236.8,236.77,0.03136112]
[1738205200604,0.027249,236.81,236.77,0.03136112]
[1738205201402,0.027249,236.81,236.8,4.2231]
[1738205201602,0.027249,236.81,236.77,0.03136112]
[1738205203204,0.027249,236.81,236.78,4.2234]
[1738205203700,0.027249,236.81,236.77,0.03136112]
[1738205204006,4.250249,236.81,236.77,0.03136112]
[1738205204397,4.2233,236.79,236.77,0.03136112]
[1738205204605,0.027249,236.81,236.77,0.03136112]
[1738205205000,4.2234,236.79,236.77,0.03136112]
[1738205205804,0.027249,236.81,236.77,0.03136112]
[1738205206011,11.55630843,236.79,236.72,4.2244]
[1738205207209,0.02960223,236.78,236.65,11.55630843]
[1738205209112,4.2239,236.76,236.65,11.55630843]
[1738205209612,0.0276413,236.73,236.65,11.55630843]
[1738205210114,4.2521413,236.73,236.68,4.2252]
[1738205212017,11.58394973,236.73,236.59,11.55630843]
[1738205212210,11.55630843,236.73,236.59,11.55630843]
[1738205212412,4.25293387,236.68,236.64,4.2259]
[1738205212609,4.25293387,236.68,236.59,11.55630843]
[1738205213913,4.25293387,236.68,236.61,4.2264]
[1738205214119,4.2256,236.67,236.56,13.01810843]
[1738205214819,4.2259,236.65,236.56,13.01810843]
[1738205215214,0.02851436,236.63,236.56,13.01810843]
[1738205215417,0.02851436,236.63,236.56,11.55630843]
[1738205215718,4.25471436,236.63,236.53,11.55630843]
[1738205216315,4.25471436,236.63,236.55,92.99337103]
[1738205216515,0.02851436,236.63,236.55,88.76597103]
[1738205217021,0.02851436,236.63,236.56,11.55630843]
[1738205217218,0.02851436,236.63,236.59,11.55630843]
[1738205217412,0.02851436,236.63,236.61,4.2265]
[1738205218013,0.02851436,236.63,236.62,11.55630843]
[1738205218321,0.02851436,236.63,236.61,4.2265]
[1738205219821,11.58482279,236.63,236.54,4.2278]
[1738205220021,11.58482279,236.63,236.5,11.55630843]
[1738205220421,4.227,236.59,236.52,4.228]
[1738205220620,11.55630843,236.63,236.5,11.55630843]
[1738205220821,0.0271808,236.58,236.52,4.2281]
[1738205221115,0.0271808,236.58,236.47,11.55630843]
[1738205221321,3.67327244,236.62,236.47,11.55630843]
[1738205221522,0.03111993,236.55,236.47,11.55630843]
[1738205222522,0.03111993,236.55,236.44,11.55630843]
[1738205222724,0.03111993,236.55,236.5,4.2285]
[1738205223129,0.03111993,236.55,236.42,1.5561]
[1738205223424,0.03111993,236.55,236.42,1.3393]
[1738205223628,15.2344121,236.54,236.38,11.55630843]
[1738205223820,11.55630843,236.51,236.38,11.55630843]
[1738205224026,0.03118061,236.48,236.38,11.55630843]
[1738205225125,0.03118061,236.48,236.41,11.55630843]
[1738205225325,11.55630843,236.54,236.41,11.55630843]
[1738205225532,0.02816436,236.47,236.41,11.55630843]
[1738205226830,0.02816436,236.47,236.38,11.55630843]
[1738205227022,11.55630843,236.54,236.38,11.55630843]
[1738205227327,3.67206194,236.53,236.46,4.2292]
[1738205227529,0.02692495,236.48,236.46,4.2292]
[1738205227933,0.02692495,236.48,236.44,4.2295]
[1738205228136,11.55630843,236.47,236.32,12.92560843]
[1738205228430,4.2295,236.45,236.32,12.92560843]
[1738205228633,0.0314399,236.42,236.32,12.92560843]
[1738205229328,0.0314399,236.42,236.41,4.2301]
[1738205233936,3.65810499,236.52,236.41,11.55630843]
[1738205234137,3.65810499,236.57,236.44,11.55630843]
[1738205234434,4.2275,236.56,236.44,11.55630843]
[1738205234634,15.78380843,236.56,236.41,11.55630843]
[1738205235031,0.03219685,236.51,236.46,0.02998349]
[1738205235230,0.03219685,236.51,236.5,4.2285]
[1738205237033,11.55630843,236.62,236.47,11.55630843]
[1738205238137,4.2266,236.61,236.56,4.2274]
[1738205238339,0.03019343,236.57,236.56,4.2274]
[1738205239041,0.03019343,236.57,236.54,4.2276]
[1738205239439,0.03019343,236.57,236.52,0.02966479]
[1738205240232,11.55630843,236.56,236.52,0.02966479]
[1738205240538,11.55630843,236.53,236.44,4.2294]
[1738205241241,4.2285,236.5,236.44,4.2294]
[1738205241534,4.2285,236.5,236.38,11.55630843]
[1738205241535,0.02957856,236.49,236.45,0.03153252]
[1738205244244,4.25827856,236.49,236.45,0.03153252]
[1738205245235,4.2293,236.46,236.35,11.55630843]
[1738205245542,11.55630843,236.47,236.32,11.55630843]
[1738205246238,11.55630843,236.44,236.31,1.3997]
[1738205246443,0.0306319,236.42,236.31,1.3997]
[1738205248242,0.0306319,236.42,236.32,11.55630843]
[1738205248643,0.0306319,236.42,236.38,4.2305]
[1738205249246,4.2305,236.39,236.33,4.2315]
[1738205249748,0.02929443,236.38,236.33,4.2315]
[1738205249946,4.25999443,236.38,236.33,4.2315]
[1738205250340,11.58560286,236.38,236.25,11.55630843]
[1738205250539,11.55630843,236.35,236.26,4.2327]
[1738205250944,0.02892932,236.33,236.26,4.2327]
[1738205251248,0.02892932,236.33,236.19,11.55630843]
[1738205251548,11.55630843,236.32,236.17,1.3975]
[1738205251950,0.03042852,236.27,236.17,1.3975]
[1738205252738,0.03042852,236.27,236.25,4.2329]
[1738205258349,0.03042852,236.27,236.19,11.55630843]
[1738205258550,0.03042852,236.27,236.26,4.2328]
[1738205270969,0.03042852,236.27,236.17,1.3975]
[1738205271466,0.03042852,236.27,236.24,4.233]
[1738205272568,0.03042852,236.27,236.2,4.2337]
[1738205272865,0.03042852,236.27,236.13,11.55630843]
[1738205273458,4.2328,236.26,236.13,11.55630843]
[1738205273760,11.55630843,236.29,236.13,11.55630843]
[1738205273966,0.03127565,236.22,236.13,11.55630843]
[1738205274170,0.03127565,236.22,236.21,4.2337]
[1738205274571,0.03127565,236.22,236.13,11.55630843]
[1738205275165,0.03127565,236.22,236.21,4.2337]
[1738205276265,1.4193,236.34,236.19,11.55630843]
[1738205276466,1.4193,236.34,236.31,4.2319]
[1738205276870,1.4193,236.34,236.22,11.55630843]
[1738205277071,1.4193,236.34,236.32,4.2315]
[1738205280176,0.02747742,236.35,236.34,4.2314]
[1738205282774,5.06488205,236.43,236.4,4.2302]
[1738205283275,1.3942,236.43,236.4,4.2302]
[1738205283669,10.06296103,236.46,236.34,11.55630843]
[1738205283670,5.83366103,236.46,236.34,11.55630843]
[1738205283876,0.03202818,236.44,236.39,0.02679946]
[1738205284267,4.2298,236.43,236.39,0.02679946]
[1738205284470,11.58833661,236.44,236.39,0.02679946]
[1738205284778,7.90693949,236.43,236.39,0.02679946]
[1738205285471,4.23,236.42,236.39,0.02679946]
[1738205285673,11.55630843,236.41,236.39,0.02679946]
[1738205285868,11.55630843,236.41,236.29,1.354]
[1738205286071,4.2306,236.39,236.34,4.2313]
[1738205286873,4.2306,236.39,236.34,4.25880122]
[1738205287079,4.25977662,236.39,236.34,4.25880122]
[1738205287877,4.2309,236.37,236.34,0.02750122]
[1738205288084,11.55630843,236.38,236.34,0.02750122]
[1738205288480,3.68572026,236.37,236.34,0.02750122]
[1738205288681,4.2312,236.35,236.34,0.02750122]
[1738205289475,7.91692026,236.35,236.34,0.02750122]
[1738205290578,3.68572026,236.35,236.34,0.02750122]
[1738205291481,0.02917662,236.39,236.34,4.25870122]
[1738205291681,0.02917662,236.39,236.34,0.02750122]
[1738205291980,0.02917662,236.39,236.38,4.2306]
[1738205292581,5.83366103,236.49,236.37,11.55630843]
[1738205293179,3.6878408,236.48,236.37,11.55630843]
[1738205293384,3.6878408,236.48,236.35,1.4078]
[1738205293687,3.6878408,236.47,236.35,1.4078]
[1738205293885,0.03047714,236.44,236.39,0.02883954]
[1738205294385,0.03047714,236.44,236.42,4.2299]
[1738205294982,0.03047714,236.44,236.39,0.02883954]
[1738205294983,0.03047714,236.44,236.4,4.2302]
[1738205295187,0.03047714,236.44,236.36,1.65431834]
[1738205295687,0.03047714,236.44,236.35,1.4078]
[1738205295988,0.03047714,236.44,236.36,11.55630843]
[1738205296382,0.03047714,236.44,236.38,4.26104666]
[1738205296588,4.26007714,236.44,236.38,0.03054666]
[1738205296894,15.81638557,236.44,236.38,0.03054666]
[1738205297285,11.58678557,236.44,236.38,0.03054666]
[1738205297488,3.68320648,236.43,236.38,0.03054666]
[1738205298191,4.2301,236.41,236.38,0.03054666]
[1738205298490,11.55630843,236.41,236.24,11.55630843]
[1738205298689,4.2312,236.35,236.29,4.2321]
[1738205298892,11.55630843,236.38,236.22,3.1183]
[1738205299292,4.2311,236.36,236.29,4.2322]
[1738205299492,11.55630843,236.38,236.22,3.1183]
[1738205299693,0.02861938,236.31,236.22,3.1183]
[1738205299891,0.02861938,236.31,236.24,4.2331]
[1738205300193,0.02861938,236.31,236.21,13.02420843]
[1738205300695,0.02861938,236.31,236.27,4.2326]
[1738205301890,0.02861938,236.31,236.24,4.2331]
[1738205302095,0.02861938,236.31,236.21,11.55630843]
[1738205302492,0.02861938,236.31,236.27,4.2326]
[1738205303399,0.02861938,236.31,236.28,4.2324]
[1738205303989,0.02861938,236.31,236.29,4.2322]
[1738205304193,1.4538,236.4,236.25,11.55630843]
[1738205304394,0.03170698,236.32,236.28,11.55630843]
[1738205304590,1.4538,236.4,236.31,11.55630843]
[1738205305497,1.4538,236.4,236.28,11.55630843]
[1738205305696,3.68400126,236.39,236.34,4.2313]
[1738205305896,0.0311118,236.36,236.34,4.2313]
[1738205307001,1.469,236.48,236.41,4.2301]
[1738205307699,3.6830042,236.47,236.41,4.2301]
[1738205308102,0.03044644,236.46,236.42,0.03161319]
[1738205308303,3.71345064,236.46,236.42,0.03161319]
[1738205308504,3.6830042,236.45,236.42,0.03161319]
[1738205309202,0.03044644,236.46,236.42,0.03161319]
[1738205309395,0.03044644,236.46,236.43,4.2296]
[1738205309794,0.03044644,236.46,236.42,0.03161319]
[1738205310004,0.03044644,236.46,236.44,4.2295]
[1738205312602,0.03044644,236.46,236.42,0.03161319]
[1738205312806,0.03044644,236.46,236.45,4.2294]
[1738205314108,0.03044644,236.46,236.43,4.2296]
[1738205314309,0.03044644,236.46,236.42,0.03161319]
[1738205314516,0.03044644,236.46,236.44,4.2295]
[1738205315804,0.03044644,236.46,236.42,0.03161319]
[1738205316810,0.03044644,236.46,236.35,1.452]
[1738205317010,3.6803618,236.45,236.35,1.452]
[1738205317209,3.6803618,236.45,236.41,4.23]
[1738205317708,4.25964644,236.46,236.41,4.23]
[1738205317908,4.25964644,236.46,236.41,4.25746056]
[1738205319313,7.91161074,236.45,236.41,4.25746056]
[1738205319507,4.2294,236.45,236.41,4.25746056]
[1738205319811,4.2294,236.45,236.41,0.02746056]
[1738205320213,11.55630843,236.43,236.41,0.02746056]
[1738205320506,11.55630843,236.43,236.29,1.4361]
[1738205320711,4.2309,236.37,236.26,1.3814]
[1738205320904,11.55630843,236.39,236.28,4.2323]
[1738205321103,11.55630843,236.36,236.28,4.2323]
[1738205321703,0.02819513,236.34,236.28,4.2323]
[1738205321908,0.02819513,236.34,236.26,4.2326]
[1738205322106,15.24270662,236.33,236.21,1.4566]
[1738205322307,15.24270662,236.33,236.19,12.93770843]
[1738205322511,3.68639819,236.32,236.19,12.93770843]
[1738205322711,4.232,236.31,236.25,4.2329]
[1738205322915,3.68639819,236.32,236.25,4.2329]
[1738205323115,3.68639819,236.3,236.19,12.93770843]
[1738205323514,3.68639819,236.3,236.26,4.2328]
[1738205323515,0.02992137,236.27,236.26,4.2328]
[1738205324909,3.68851686,236.35,236.33,4.2315]
[1738205325115,11.55630843,236.39,236.33,4.2315]
[1738205325519,3.68825845,236.38,236.33,4.2315]
[1738205325924,7.91915845,236.37,236.31,4.2318]
[1738205326113,7.91915845,236.37,236.33,0.03057388]
[1738205326417,15.24456688,236.36,236.22,11.55630843]
[1738205326817,4.2315,236.34,236.27,4.2325]
[1738205327017,4.2315,236.34,236.22,11.55630843]
[1738205327418,3.68825845,236.33,236.22,11.55630843]
[1738205327619,0.02717812,236.3,236.22,11.55630843]
[1738205328118,0.02717812,236.3,236.28,4.2324]
[1738205328515,0.02717812,236.3,236.22,11.55630843]
[1738205328716,0.02717812,236.3,236.29,4.2322]
[1738205337824,0.02717812,236.3,236.25,11.55630843]
[1738205338026,0.02717812,236.3,236.22,11.55630843]
[1738205338623,0.02717812,236.3,236.26,4.2327]
[1738205339131,0.02717812,236.3,236.22,11.55630843]
[1738205339330,0.02717812,236.3,236.27,4.2326]
[1738205340733,0.02717812,236.3,236.29,4.2322]
[1738205340928,0.02717812,236.3,236.22,11.55630843]
[1738205341330,0.02717812,236.3,236.26,4.2326]
[1738205342234,4.25927812,236.3,236.26,4.2326]
[1738205342435,0.02717812,236.3,236.21,4.2335]
[1738205342729,1.3552,236.29,236.21,4.2335]
[1738205342927,4.2328,236.26,236.21,4.2335]
[1738205344130,0.03018621,236.28,236.21,4.2335]
[1738205344335,4.26278621,236.28,236.21,4.2335]
[1738205344535,0.03018621,236.28,236.16,11.55630843]
[1738205346536,4.2327,236.27,236.22,4.2334]
[1738205346838,0.03018621,236.28,236.16,11.55630843]
[1738205347038,0.03018621,236.28,236.22,11.55630843]
[1738205347241,0.03018621,236.28,236.27,4.2326]
[1738205349535,3.68299899,236.37,236.28,11.55630843]
[1738205349836,1.4635,236.39,236.28,11.55630843]
[1738205350440,4.2306,236.38,236.33,4.2315]
[1738205350640,0.02881567,236.36,236.31,0.02793363]
[1738205351041,0.02881567,236.36,236.34,4.2313]
[1738205351743,0.02881567,236.36,236.31,0.02793363]
[1738205352339,4.2314,236.34,236.31,0.02793363]
[1738205354939,11.55630843,236.31,236.16,11.55630843]
[1738205355340,0.02722756,236.26,236.16,11.55630843]
[1738205356542,4.26002756,236.26,236.2,4.2337]
[1738205356844,0.02722756,236.26,236.2,4.2337]
[1738205358443,0.02722756,236.26,236.14,88.91950762]
[1738205358644,0.02722756,236.26,236.22,4.2335]
[1738205358847,4.26002756,236.26,236.14,88.91950762]
[1738205359043,4.26002756,236.26,236.17,4.2343]
[1738205359244,3.68729262,236.25,236.14,88.91950762]
[1738205359748,4.26002756,236.26,236.14,88.91950762]
[1738205359944,4.26002756,236.26,236.21,4.2337]
[1738205360644,0.02722756,236.26,236.13,11.55630843]
[1738205361040,0.02722756,236.26,236.16,11.55630843]
[1738205361847,0.02722756,236.26,236.19,11.55630843]
[1738205363346,0.02722756,236.26,236.16,11.55630843]
[1738205364046,0.02722756,236.26,236.13,11.55630843]
[1738205364242,3.69261597,236.25,236.13,11.55630843]
[1738205364842,3.69261597,236.24,236.2,4.2338]
[1738205365044,0.02722756,236.26,236.13,11.55630843]
[1738205365252,11.55630843,236.28,236.13,11.55630843]
[1738205365458,0.03173535,236.22,236.2,4.2338]
[1738205369651,0.03173535,236.22,236.21,4.2337]
[1738205374953,0.03173535,236.22,236.16,11.55630843]
[1738205374954,11.55630843,236.34,236.19,11.55630843]
[1738205375747,3.69388952,236.32,236.19,11.55630843]
[1738205375954,4.2319,236.31,236.19,11.55630843]
[1738205376149,0.02990357,236.28,236.23,0.03154089]
[1738205376453,0.02990357,236.28,236.27,4.2326]
[1738205380058,4.2305,236.39,236.25,11.55630843]
[1738205380256,3.69402784,236.38,236.28,11.55630843]
[1738205380860,3.69402784,236.37,236.28,11.55630843]
[1738205381056,5.6466,236.4,236.35,4.2311]
[1738205381357,5.674356,236.4,236.35,4.2311]
[1738205381559,5.674356,236.4,236.35,4.26259483]
[1738205381756,5.674356,236.4,236.36,4.231]
[1738205381955,3.69272163,236.39,236.35,0.03149483]
[1738205382659,3.69272163,236.38,236.35,0.03149483]
[1738205382858,0.027756,236.4,236.35,0.03149483]
[1738205383057,3.69201733,236.39,236.35,4.26249483]
[1738205383461,3.69201733,236.38,236.35,4.26249483]
[1738205383664,3.69201733,236.38,236.28,1.65241924]
[1738205383859,0.027756,236.4,236.28,11.55630843]
[1738205384055,11.55630843,236.37,236.24,1.3794]
[1738205384256,11.55630843,236.37,236.28,4.2324]
[1738205384257,4.2315,236.33,236.28,4.2324]
[1738205384962,4.26153415,236.33,236.28,4.26196615]
[1738205385763,0.03003415,236.33,236.29,4.2322]
[1738205386358,0.03003415,236.33,236.28,0.02956615]
[1738205386564,0.03003415,236.33,236.31,4.2317]
[1738205386862,0.03003415,236.33,236.28,0.02956615]
[1738205387063,0.03003415,236.33,236.32,4.2317]
[1738205388561,4.2302,236.41,236.28,11.58587458]
[1738205388765,4.2302,236.41,236.36,4.231]
[1738205388964,3.68929711,236.4,236.36,4.231]
[1738205389169,3.68929711,236.4,236.37,4.2308]
[1738205389464,11.55630843,236.43,236.37,4.2308]
[1738205389766,0.03104159,236.42,236.38,0.03032448]
[1738205390065,3.71957553,236.42,236.38,0.03032448]
[1738205390262,4.2301,236.41,236.38,0.03032448]
[1738205390766,3.68853394,236.4,236.38,0.03032448]
[1738205391565,0.03104159,236.42,236.38,0.03032448]
[1738205392177,4.2303,236.4,236.38,0.03032448]
[1738205392466,3.68718256,236.41,236.38,0.03032448]
[1738205392667,0.03104159,236.42,236.38,0.03032448]
[1738205393867,3.68581017,236.41,236.38,11.58663291]
[1738205394062,0.03104159,236.42,236.38,11.58663291]
[1738205394362,1.3757,236.55,236.41,11.55630843]
[1738205394967,4.228,236.53,236.41,11.55630843]
[1738205395268,1.3757,236.55,236.41,11.55630843]
[1738205395467,0.03072545,236.49,236.45,0.02931454]
[1738205396067,0.03072545,236.49,236.47,4.2289]
[1738205397162,0.03072545,236.49,236.45,4.25861454]
[1738205397562,0.03072545,236.49,236.45,0.02931454]
[1738205398369,0.03072545,236.49,236.45,4.25871454]
[1738205398568,4.2291,236.47,236.45,0.02931454]
[1738205400064,11.55630843,236.48,236.3,1.4078]
[1738205400265,11.55630843,236.44,236.3,1.4078]
[1738205400573,11.55630843,236.44,236.28,0.7732]
[1738205401273,0.02857142,236.38,236.34,0.02876311]
[1738205403077,0.02857142,236.38,236.35,4.2311]
[1738205404076,0.02857142,236.38,236.36,4.2309]
[1738205404476,0.02857142,236.38,236.34,11.58507154]
[1738205404673,0.02857142,236.38,236.37,4.2308]
[1738205404978,0.02857142,236.38,236.34,10.18667441]
[1738205406170,0.02857142,236.38,236.34,10.21882249]
[1738205406373,0.02857142,236.38,236.37,15.78710843]
[1738205407469,11.55630843,236.56,236.37,11.55630843]
[1738205407676,81.08286221,236.63,236.38,11.55630843]
[1738205407677,13.02140843,236.53,236.38,11.55630843]
[1738205408578,0.02854571,236.48,236.43,0.03153042]
[1738205408778,0.02854571,236.48,236.43,4.26123042]
[1738205409575,0.02854571,236.48,236.43,0.03153042]
[1738205409779,0.02854571,236.48,236.46,4.2292]
[1738205411280,0.02854571,236.48,236.47,4.229]
[1738205411679,6.9822,236.59,236.45,11.55630843]
[1738205411986,2.7552,236.59,236.46,11.55630843]
[1738205412176,14.31150843,236.59,236.43,11.55630843]
[1738205412382,4.2283,236.51,236.46,4.229]
[1738205412584,14.31150843,236.59,236.43,11.55630843]
[1738205412989,4.25639959,236.53,236.49,0.028189]
[1738205413980,0.02839959,236.53,236.49,0.028189]
[1738205414591,0.02839959,236.53,236.52,4.2281]
[1738205416788,0.02839959,236.53,236.49,11.58449743]
[1738205416789,0.02839959,236.53,236.51,4.2282]
[1738205418392,0.02839959,236.53,236.52,4.2281]
[1738205420090,0.02839959,236.53,236.49,0.028189]
[1738205420692,4.2288,236.49,236.4,11.55630843]
[1738205421190,4.2285,236.5,236.43,4.2296]
[1738205421396,1.3358,236.54,236.43,4.2296]
[1738205421596,11.55630843,236.52,236.37,11.55630843]
[1738205422000,0.02690546,236.47,236.42,0.02847076]
[1738205422701,0.02690546,236.47,236.43,4.2297]
[1738205422894,0.02690546,236.47,236.42,0.02847076]
[1738205424199,0.02690546,236.47,236.44,4.2295]
[1738205424699,0.02690546,236.47,236.45,4.2294]
[1738205425300,0.02690546,236.47,236.42,0.02847076]
[1738205426297,0.02690546,236.47,236.4,11.55630843]
[1738205427101,0.02690546,236.47,236.46,4.2292]
[1738205427697,4.2267,236.6,236.46,11.55630843]
[1738205427899,2.7052,236.61,236.51,11.55630843]
[1738205428298,2.7052,236.61,236.54,4.2278]
[1738205428699,0.02699081,236.6,236.55,0.03101512]
[1738205429202,0.02699081,236.6,236.57,4.2272]
[1738205430003,0.02699081,236.6,236.55,0.03101512]
[1738205431599,4.2271,236.58,236.55,0.03101512]
[1738205431805,0.02699081,236.6,236.55,0.03101512]
[1738205432402,4.2269,236.59,236.55,0.03101512]